bitfinex-derivatives/quotes_SOLF0:USTF0_20260316
["timestamp","ask_amount","ask_price","bid_price","bid_amount"]
[1773676316672,6.28664795,93.447,93.343,33.62]
[1773676317074,6.28664795,93.447,93.334,717.1273988]
[1773676317270,6.28664795,93.447,93.344,33.62]
[1773676317467,33.62,93.448,93.344,33.62]
[1773676317468,6.21358252,93.429,93.344,33.62]
[1773676319070,6.21358252,93.429,93.334,717.1273988]
[1773676319071,6.21358252,93.429,93.345,33.62]
[1773676320863,6.18254361,93.449,93.35,8.72383661]
[1773676321463,6.18254361,93.449,93.351,33.62]
[1773676321670,6.18392772,93.429,93.334,717.1273988]
[1773676321868,8.72383661,93.43,93.334,717.1273988]
[1773676321869,6.18392772,93.427,93.334,717.1273988]
[1773676322070,8.72383661,93.43,93.334,717.1273988]
[1773676322071,6.18392772,93.425,93.335,33.62]
[1773676325675,6.20676411,93.409,93.324,33.62]
[1773676325877,6.20676411,93.407,93.32,45.82102707]
[1773676326271,6.20676411,93.407,93.32,12.20102707]
[1773676327070,6.22229325,93.389,93.32,12.20102707]
[1773676331973,6.23429915,93.369,93.32,12.20102707]
[1773676335570,6.23590484,93.359,93.32,12.20102707]
[1773676336273,6.23590484,93.359,93.218,441.0]
[1773676336274,6.23590484,93.359,93.274,3.86801161]
[1773676336470,8.72383661,93.36,93.274,3.86801161]
[1773676336471,3.90301,93.357,93.274,3.86801161]
[1773676336671,3.90301,93.339,93.274,3.86801161]
[1773676338177,8.72383661,93.36,93.274,3.86801161]
[1773676338481,3.90301,93.374,93.274,3.86801161]
[1773676339281,3.90301,93.374,93.275,3.86801161]
[1773676341679,15.91184784,93.413,93.28,8.72383661]
[1773676341879,15.91184784,93.413,93.33,8.72383661]
[1773676342079,15.91184784,93.413,93.31,8.72383661]
[1773676343483,15.87685254,93.409,93.3,8.72383661]
[1773676343987,15.87685254,93.409,93.301,33.62]
[1773676344189,15.87685254,93.409,93.32,8.72383661]
[1773676346689,19.258,93.451,93.27,62.0]
[1773676346690,15.88674377,93.427,93.34,8.72383661]
[1773676351590,15.88674377,93.427,93.322,33.62]
[1773676351890,2.14,93.402,93.33,8.72383661]
[1773676352489,2.141,93.394,93.33,8.72383661]
[1773676352794,15.90140091,93.399,93.29,8.72383661]
[1773676353192,2.141,93.358,93.29,8.72383661]
[1773676356396,15.89430221,93.367,93.27,8.72383661]
[1773676356596,15.89430221,93.367,93.29,8.72383661]
[1773676356797,15.89430221,93.367,93.27,8.72383661]
[1773676358506,2.142,93.344,93.27,8.72383661]
[1773676359009,15.90983273,93.352,93.27,8.72383661]
[1773676359600,2.142,93.335,93.27,8.72383661]
[1773676361497,15.92856754,93.371,93.27,8.72383661]
[1773676361800,8.72383661,93.4,93.265,19.296]
[1773676361801,15.92846963,93.399,93.29,8.72383661]
[1773676362000,2.141,93.374,93.29,8.72383661]
[1773676362801,2.141,93.382,93.31,8.7357486]
[1773676363793,2.141,93.373,93.31,8.7357486]
[1773676364395,2.141,93.366,93.31,8.7357486]
[1773676364798,2.141,93.366,93.303,33.62]
[1773676365405,15.92468616,93.365,93.271,33.62]
[1773676365604,15.92468616,93.365,93.272,33.62]
[1773676365905,2.142,93.341,93.272,33.62]
[1773676366106,2.142,93.341,93.273,33.62]
[1773676366998,15.92468616,93.365,93.27,8.7357486]
[1773676367203,15.92468616,93.365,93.271,33.62]
[1773676367702,15.92468616,93.365,93.29,8.7357486]
[1773676367906,2.141,93.368,93.291,33.62]
[1773676368105,15.90982852,93.382,93.291,33.62]
[1773676368303,2.142,93.351,93.291,33.62]
[1773676368709,18.05190367,93.351,93.291,33.62]
[1773676368907,18.05190367,93.351,93.272,19.295]
[1773676369108,18.05190367,93.351,93.273,33.62]
[1773676369604,15.90990367,93.377,93.29,8.7357486]
[1773676370311,15.90990367,93.377,93.264,51.86063418]
[1773676370312,15.91004005,93.395,93.31,8.7357486]
[1773676370512,15.91004005,93.395,93.311,33.62]
[1773676371616,15.88604225,93.392,93.311,33.62]
[1773676372514,2.141,93.387,93.311,33.62]
[1773676372716,15.88867493,93.387,93.31,8.7357486]
[1773676372915,15.88867493,93.387,93.311,33.62]
[1773676374723,2.141,93.374,93.311,33.62]
[1773676375223,2.141,93.382,93.311,33.62]
[1773676375824,15.93580564,93.381,93.311,33.62]
[1773676376019,2.141,93.379,93.311,33.62]
[1773676376321,15.93580564,93.381,93.311,33.62]
[1773676378424,18.07680564,93.381,93.311,33.62]
[1773676378625,15.93580564,93.381,93.312,33.62]
[1773676379024,2.141,93.365,93.312,33.62]
[1773676379824,15.93116344,93.358,93.284,33.62]
[1773676380226,15.93116344,93.358,93.278,33.62]
[1773676381525,15.92872735,93.324,93.262,33.62]
[1773676382526,2.142,93.321,93.262,33.62]
[1773676384529,18.07808719,93.321,93.262,33.62]
[1773676386227,15.93608719,93.321,93.262,33.62]
[1773676386527,15.93608719,93.321,93.25,8.7357486]
[1773676386728,15.93608719,93.321,93.251,33.64]
[1773676387232,2.142,93.319,93.251,33.64]
[1773676389330,15.93608719,93.321,93.251,33.64]
[1773676390329,15.93608719,93.321,93.25,8.7357486]
[1773676390330,2.143,93.312,93.241,1.86504672]
[1773676390526,2.143,93.312,93.242,33.64]
[1773676390930,2.143,93.298,93.242,33.64]
[1773676391238,15.88950801,93.297,93.234,33.64]
[1773676391438,15.88950801,93.297,93.225,33.64]
[1773676392329,15.88950801,93.297,93.22,33.64]
[1773676393334,2.143,93.288,93.19,8.7357486]
[1773676393638,2.143,93.288,93.224,33.64]
[1773676394330,18.00037822,93.288,93.224,33.64]
[1773676394534,18.00037822,93.288,93.225,33.64]
[1773676395836,2.143,93.279,93.225,33.64]
[1773676396034,2.143,93.279,93.21,8.7357486]
[1773676396237,2.143,93.279,93.226,33.64]
[1773676396441,17.99677092,93.279,93.226,33.64]
[1773676397537,15.85377092,93.279,93.226,33.64]
[1773676399440,15.86058563,93.275,93.226,33.64]
[1773676400544,18.00268268,93.273,93.226,33.64]
[1773676400837,15.85968268,93.273,93.226,33.64]
[1773676401043,18.00268268,93.273,93.226,33.64]
[1773676401444,15.85968268,93.273,93.226,33.64]
[1773676401845,15.85968268,93.273,93.227,33.64]
[1773676403548,2.143,93.27,93.227,33.64]
[1773676403949,15.85968268,93.273,93.227,33.64]
[1773676404150,15.87083369,93.255,93.227,33.64]
[1773676404554,9.92920611,93.349,93.157,19.319]
[1773676404555,15.87083369,93.233,93.157,294.0]
[1773676404850,15.87083369,93.233,93.158,33.64]
[1773676405047,15.87083369,93.233,93.161,1.86705295]
[1773676406349,15.87083369,93.233,93.162,33.64]
[1773676406652,15.87083369,93.233,93.163,33.64]
[1773676406854,15.81260312,93.229,93.151,1.86714311]
[1773676407048,15.81260312,93.229,93.16,8.7357486]
[1773676407249,15.81260312,93.229,93.161,33.64]
[1773676407954,15.82061225,93.269,93.162,33.64]
[1773676412456,15.82061225,93.269,93.155,1.8670229]
[1773676412658,15.82061225,93.269,93.156,33.66]
[1773676413255,15.82061225,93.269,93.17,8.7357486]
[1773676413455,15.82061225,93.269,93.19,8.7357486]
[1773676413655,15.82061225,93.269,93.191,33.66]
[1773676414355,15.91809576,93.309,93.21,8.7357486]
[1773676414552,15.91809576,93.309,93.211,33.66]
[1773676414756,15.91809576,93.309,93.23,8.7357486]
[1773676415955,15.91809576,93.309,93.231,33.66]
[1773676418357,15.92178324,93.289,93.18,8.7357486]
[1773676418563,15.92178324,93.269,93.16,8.7357486]
[1773676419767,15.92178324,93.269,93.155,1.8670229]
[1773676420161,15.92178324,93.269,93.16,8.7357486]
[1773676422870,15.92178324,93.269,93.155,1.8670229]
[1773676423563,15.89737001,93.249,93.155,1.8670229]
[1773676423764,15.89737001,93.249,93.14,8.7357486]
[1773676423973,15.89737001,93.249,93.151,1.86705796]
[1773676424668,15.89737001,93.249,93.14,8.7357486]
[1773676424974,15.89737001,93.249,93.141,1.86725832]
[1773676425874,15.91149645,93.239,93.126,33.66]
[1773676426070,15.91149645,93.239,93.131,1.86735852]
[1773676427477,15.91149645,93.239,93.14,8.766977]
[1773676429777,15.91149645,93.239,93.131,1.86735852]
[1773676430272,15.91149645,93.239,93.132,33.66]
[1773676431074,15.91502749,93.219,93.1,12.3290774]
[1773676431476,15.91502749,93.217,93.1,12.3290774]
[1773676431677,15.91502749,93.217,93.101,35.52801006]
[1773676433278,15.91502749,93.217,93.11,8.766977]
[1773676433472,15.91502749,93.217,93.13,8.766977]
[1773676433981,15.91502749,93.217,93.131,33.66]
[1773676437884,9.84836115,93.282,93.131,33.66]
[1773676437885,15.94509118,93.246,93.17,8.766977]
[1773676438078,15.94509118,93.246,93.132,52.03063418]
[1773676438379,15.94509118,93.246,93.15,8.766977]
[1773676439281,15.94509118,93.246,93.151,19.32]
[1773676439484,15.94509118,93.246,93.152,33.66]
[1773676440884,15.94509118,93.246,93.16,8.766977]
[1773676441274,15.94509118,93.246,93.18,8.766977]
[1773676441476,15.94509118,93.246,93.181,33.66]
[1773676442080,15.82972217,93.287,93.2,8.766977]
[1773676442280,15.82972217,93.287,93.201,33.66]
[1773676442478,15.82972217,93.287,93.202,33.66]
[1773676442884,15.82972217,93.287,93.22,8.766977]
[1773676443188,15.82972217,93.287,93.221,33.66]
[1773676443385,15.82972217,93.287,93.22,33.66]
[1773676445582,15.8398843,93.306,93.22,8.766977]
[1773676445782,15.8398843,93.306,93.221,33.66]
[1773676445983,15.8398843,93.306,93.22,8.766977]
[1773676446186,15.8398843,93.306,93.221,33.66]
[1773676446491,15.8398843,93.306,93.21,8.766977]
[1773676448083,15.84560381,93.289,93.17,8.766977]
[1773676448389,15.84560381,93.289,93.171,33.66]
[1773676449886,15.84560381,93.289,93.173,19.315]
[1773676450091,15.84560381,93.289,93.19,8.766977]
[1773676452692,15.84560381,93.289,93.21,8.766977]
[1773676452894,15.84560381,93.289,93.211,33.66]
[1773676454994,15.84560381,93.289,93.21,8.766977]
[1773676455195,15.84560381,93.289,93.212,33.66]
[1773676455992,15.84997285,93.336,93.212,33.66]
[1773676456188,15.84997285,93.329,93.212,33.66]
[1773676456696,15.84997285,93.329,93.214,19.307]
[1773676457793,15.84997285,93.329,93.23,8.766977]
[1773676457994,15.84997285,93.329,93.231,33.66]
[1773676458697,15.84997285,93.329,93.232,19.303]
[1773676460295,15.84997285,93.329,93.231,33.66]
[1773676463703,15.84997285,93.329,93.22,8.766977]
[1773676463902,15.84997285,93.329,93.221,33.66]
[1773676465603,15.87669843,93.327,93.202,19.309]
[1773676465903,15.87669843,93.327,93.213,33.66]
[1773676466305,15.87669843,93.327,93.212,33.66]
[1773676466597,15.87669843,93.327,93.22,8.766977]
[1773676468199,15.87669843,93.327,93.213,33.66]
[1773676471105,15.87669843,93.327,93.22,8.766977]
[1773676471798,15.87669843,93.327,93.221,33.66]
[1773676474198,15.87669843,93.327,93.221,33.66]
[1773676476007,15.87669843,93.327,93.234,19.303]
[1773676476705,15.87669843,93.327,93.238,19.302]
[1773676476902,15.87669843,93.327,93.25,8.766977]
[1773676479711,15.87669843,93.327,93.251,33.66]
[1773676480814,15.87669843,93.327,93.245,33.66]
[1773676481613,15.87669843,93.327,93.219,19.83727198]
[1773676481915,15.87669843,93.327,93.222,19.305]
[1773676482215,15.87669843,93.327,93.23,8.766977]
[1773676484914,15.87669843,93.327,93.231,33.66]
[1773676487721,15.87669843,93.327,93.231,53.49727198]
[1773676488528,15.87669843,93.327,93.231,19.83727198]
[1773676488722,15.87669843,93.327,93.232,33.66]
[1773676489725,15.87669843,93.327,93.232,53.49727198]
[1773676490031,15.87669843,93.327,93.232,33.66]
[1773676493132,15.85393952,93.325,93.232,33.66]
[1773676493331,15.85393952,93.325,93.24,8.75205087]
[1773676494133,15.85393952,93.325,93.242,19.301]
[1773676494726,15.85393952,93.325,93.242,39.13827198]
[1773676495131,15.85393952,93.325,93.243,19.83727198]
[1773676495634,15.85393952,93.325,93.25,19.299]
[1773676495934,15.85515311,93.34,93.26,8.75205087]
[1773676497434,15.85515311,93.34,93.251,33.66]
[1773676497831,15.85515311,93.34,93.252,19.299]
[1773676498032,15.85515311,93.34,93.252,39.13627198]
[1773676499338,15.85515311,93.34,93.252,19.299]
[1773676501534,15.85515311,93.34,93.251,33.66]
[1773676502942,15.81689854,93.329,93.228,19.83727198]
[1773676503132,15.81689854,93.329,93.225,19.83727198]
[1773676503337,15.81689854,93.329,93.224,19.83727198]
[1773676503737,15.81689854,93.329,93.226,19.83727198]
[1773676504733,15.81689854,93.329,93.231,19.83727198]
[1773676504933,15.81689854,93.329,93.24,28.58932285]
[1773676505137,15.81689854,93.329,93.245,19.83727198]
[1773676505339,15.81689854,93.329,93.244,33.68]
[1773676505539,15.81689854,93.329,93.229,33.68]
[1773676506231,15.81689854,93.329,93.23,19.83727198]
[1773676508640,15.7701633,93.319,93.229,33.68]
[1773676508835,15.7701633,93.317,93.225,33.68]
[1773676509142,15.7701633,93.312,93.218,19.83727198]
[1773676509337,15.7701633,93.279,93.167,19.83727198]
[1773676509537,15.7701633,93.277,93.168,33.68]
[1773676509737,13.21800546,93.307,93.168,33.68]
[1773676509738,15.77225143,93.276,93.19,8.75205087]
[1773676509938,15.77225143,93.276,93.191,19.83727198]
[1773676510140,15.77225143,93.276,93.19,8.75205087]
[1773676512033,15.77225143,93.276,93.191,33.68]
[1773676513942,15.77225143,93.276,93.192,33.68]
[1773676515241,15.77225143,93.276,93.185,33.68]
[1773676521547,15.77225143,93.276,93.186,19.313]
[1773676521848,15.77225143,93.276,93.2,8.75205087]
[1773676522052,15.77225143,93.276,93.201,33.68]
[1773676522447,15.70748621,93.315,93.22,8.75205087]
[1773676522853,15.70748621,93.315,93.221,33.68]
[1773676523155,15.70748621,93.315,93.156,26.35677208]
[1773676523156,15.7283123,93.309,93.208,33.68]
[1773676525359,15.70777053,93.289,93.208,33.68]
[1773676525656,8.75205087,93.29,93.18,8.75205087]
[1773676525657,15.70777053,93.287,93.188,33.68]
[1773676528152,15.70777053,93.287,93.18,8.75205087]
[1773676528452,15.71398718,93.269,93.156,19.319]
[1773676528754,15.7158549,93.239,93.17,3.68147113]
[1773676528949,15.7158549,93.239,93.18,3.68147113]
[1773676529956,15.7158549,93.239,93.19,3.68147113]
[1773676530154,15.7158549,93.239,93.2,3.68147113]
[1773676530648,15.7158549,93.239,93.19,3.68147113]
[1773676530849,15.7158549,93.239,93.156,19.319]
[1773676530850,15.72140049,93.279,93.17,8.76208141]
[1773676531057,15.72140049,93.279,93.19,8.76208141]
[1773676531357,15.72140049,93.279,93.184,33.68]
[1773676534659,15.72140049,93.279,93.185,33.68]
[1773676535751,15.72140049,93.279,93.19,8.76208141]
[1773676536359,15.72140049,93.279,93.172,19.316]
[1773676536558,15.72140049,93.279,93.191,33.68]
[1773676539658,15.72140049,93.279,93.192,19.311]
[1773676540664,15.72140049,93.279,93.193,33.68]
[1773676540869,15.72140049,93.279,93.194,33.68]
[1773676546657,15.72140049,93.279,93.176,19.83727198]
[1773676546862,15.72140049,93.279,93.188,33.68]
[1773676547465,15.72140049,93.279,93.189,19.312]
[1773676549063,15.72140049,93.279,93.2,8.76016388]
[1773676549264,15.72140049,93.279,93.184,19.83727198]
[1773676549465,15.65043416,93.277,93.174,19.83727198]
[1773676549769,15.65043416,93.276,93.173,19.83727198]
[1773676550263,15.65043416,93.276,93.176,19.83727198]
[1773676550468,15.65043416,93.276,93.172,53.51727198]
[1773676550669,15.70951783,93.259,93.172,33.68]
[1773676550872,15.75768792,93.199,93.14,3.68313243]
[1773676551567,15.75768792,93.199,93.125,33.68]
[1773676551767,15.75768792,93.199,93.14,3.68313243]
[1773676552765,15.75768792,93.199,93.125,33.68]
[1773676552968,15.81678632,93.222,93.125,33.68]
[1773676553164,15.81678632,93.222,93.11,8.77176468]
[1773676553362,15.81678632,93.222,93.132,33.68]
[1773676557667,15.78601582,93.209,93.132,33.68]
[1773676557866,15.78601582,93.209,93.131,350.32344773]
[1773676558167,15.78601582,93.209,93.131,33.7]
[1773676559572,15.78601582,93.209,93.11,8.77176468]
[1773676559872,15.78601582,93.209,93.111,33.7]
[1773676560675,15.78601582,93.209,93.13,8.77176468]
[1773676561077,15.81645827,93.224,93.13,8.77176468]
[1773676561375,15.81645827,93.224,93.15,8.77176468]
[1773676561675,9.94873291,93.273,93.101,34.03801006]
[1773676561676,15.81645827,93.257,93.17,8.77176468]
[1773676561976,15.83327042,93.287,93.19,8.77176468]
[1773676562175,15.83327042,93.287,93.191,33.7]
[1773676562474,15.83327042,93.287,93.192,33.7]
[1773676564271,15.83327042,93.287,93.193,33.7]
[1773676564477,15.83327042,93.287,93.194,33.7]
[1773676568470,15.83327042,93.287,93.21,8.77176468]
[1773676568668,15.83327042,93.287,93.211,33.68]
[1773676570577,15.83327042,93.287,93.21,8.77176468]
[1773676570776,15.83327042,93.287,93.211,33.68]
[1773676572181,15.83327042,93.287,93.21,8.77176468]
[1773676572384,15.83327042,93.287,93.212,33.68]
[1773676574484,15.83327042,93.287,93.18,8.77176468]
[1773676574690,15.83327042,93.287,93.181,33.68]
[1773676576986,15.83327042,93.287,93.184,19.313]
[1773676577586,15.83327042,93.287,93.185,19.83727198]
[1773676578091,15.83327042,93.287,93.2,8.77176468]
[1773676578393,15.83327042,93.287,93.201,33.68]
[1773676579691,15.83327042,93.287,93.18,8.77176468]
[1773676579892,15.83327042,93.287,93.181,33.68]
[1773676580395,15.76335837,93.279,93.181,33.68]
[1773676585497,15.76335837,93.279,93.167,19.317]
[1773676585703,15.76335837,93.279,93.168,33.7]
[1773676587003,15.76335837,93.279,93.16,8.77176468]
[1773676587299,15.76335837,93.279,93.168,33.7]
[1773676588901,15.77962477,93.259,93.2,3.67933375]
[1773676592899,15.77962477,93.259,93.19,3.67933375]
[1773676594504,15.77962477,93.259,93.2,3.67933375]
[1773676596110,15.80460994,93.269,93.21,3.67933375]
[1773676596710,15.80460994,93.269,93.22,3.67933375]
[1773676597611,15.80460994,93.269,93.21,3.67933375]
[1773676598312,15.80460994,93.269,93.177,33.7]
[1773676598507,15.80271474,93.259,93.2,3.67933375]
[1773676601617,15.80271474,93.259,93.21,3.67933375]
[1773676603507,15.80906652,93.278,93.23,3.67933375]
[1773676604014,15.80906652,93.278,93.22,3.67933375]
[1773676604906,15.80906652,93.278,93.196,33.7]
[1773676605111,15.80906652,93.278,93.22,3.67933375]
[1773676605821,15.83013145,93.259,93.2,3.67933375]
[1773676606920,15.83013145,93.259,93.2,3.67943259]
[1773676607217,15.83013145,93.259,93.21,3.67943259]
[1773676610128,15.86044329,93.289,93.22,3.67943259]
[1773676610425,15.86044329,93.289,93.23,3.67943259]
[1773676610827,15.86044329,93.289,93.24,3.67943259]
[1773676611815,15.86044329,93.289,93.23,3.67943259]
[1773676612514,15.86044329,93.289,93.21,33.7]
[1773676612714,3.67943259,93.28,93.22,3.67943259]
[1773676612915,15.86862151,93.279,93.191,19.83727198]
[1773676613115,19.284,93.324,93.183,19.313]
[1773676613116,15.86862151,93.259,93.2,3.67943259]
[1773676613623,15.86862151,93.259,93.2,23.51670457]
[1773676615221,15.86862151,93.259,93.201,19.83727198]
[1773676615422,15.86862151,93.259,93.21,3.67943259]
[1773676618426,15.75652038,93.279,93.22,3.67943259]
[1773676618816,15.75541067,93.269,93.22,3.67943259]
[1773676619021,15.75541067,93.269,93.21,3.67943259]
[1773676619619,15.75541067,93.259,93.2,3.67943259]
[1773676620328,33.7,93.294,93.186,33.7]
[1773676620329,15.75554698,93.249,93.19,3.67943259]
[1773676620626,15.75554698,93.269,93.21,3.67943259]
[1773676620828,15.75554698,93.269,93.22,3.67943259]
[1773676621029,15.75554698,93.269,93.202,19.83727198]
[1773676621230,15.75676573,93.259,93.2,3.67943259]
[1773676621828,15.75676573,93.259,93.19,3.67943259]
[1773676622030,15.75676573,93.259,93.2,3.67943259]
[1773676622932,15.75676573,93.259,93.21,3.67943259]
[1773676623129,33.7,93.298,93.193,19.83727198]
[1773676623130,15.75265671,93.289,93.23,3.67943259]
[1773676623326,15.75265671,93.289,93.207,19.83727198]
[1773676623523,15.75265671,93.269,93.2,3.67943259]
[1773676623722,15.75265671,93.259,93.2,3.67943259]
[1773676623925,15.75265671,93.259,93.19,3.67943259]
[1773676624127,15.75004595,93.249,93.19,3.67943259]
[1773676624324,15.75004595,93.239,93.18,3.67943259]
[1773676624723,3.67943259,93.23,93.171,19.83727198]
[1773676624926,15.75564475,93.219,93.16,3.67943259]
[1773676625237,15.75564475,93.209,93.15,3.67943259]
[1773676625628,15.75564475,93.209,93.14,3.67943259]
[1773676625929,15.77641971,93.199,93.14,3.67943259]
[1773676626839,15.77466256,93.189,93.125,19.83727198]
[1773676627129,15.77466256,93.189,93.14,3.67943259]
[1773676628025,15.76816518,93.209,93.15,3.67943259]
[1773676628231,15.76816518,93.209,93.16,3.67943259]
[1773676628533,15.76816518,93.209,93.17,3.67943259]
[1773676628733,15.76816518,93.209,93.144,33.7]
[1773676628933,33.7,93.251,93.144,33.7]
[1773676628934,15.76764753,93.226,93.145,19.83727198]
[1773676629226,15.76764753,93.226,93.147,19.83727198]
[1773676629432,15.76764753,93.226,93.148,33.7]
[1773676629633,15.76764753,93.226,93.14,8.76718596]
[1773676629829,15.76764753,93.226,93.141,33.7]
[1773676630934,15.76764753,93.226,93.127,19.83727198]
[1773676631134,15.76764753,93.226,93.128,33.72]
[1773676631733,15.76764753,93.226,93.121,19.83727198]
[1773676631926,15.76764753,93.226,93.122,33.72]
[1773676636547,8.05437289,93.243,93.109,21.19663412]
[1773676636548,15.76347902,93.209,93.109,1.86763412]
[1773676637239,15.76347902,93.209,93.12,8.76718596]
[1773676638534,15.76347902,93.209,93.121,33.72]
[1773676639535,15.76347902,93.209,93.12,8.76718596]
[1773676639739,15.76347902,93.209,93.121,33.72]
[1773676640442,8.76718596,93.19,93.109,35.58763412]
[1773676640641,15.79599453,93.189,93.109,33.72]
[1773676641036,15.79599453,93.189,93.1,12.3290774]
[1773676641037,15.79599453,93.189,93.1,21.09626336]
[1773676641234,15.79599453,93.189,93.101,33.72]
[1773676641838,15.79599453,93.189,93.12,8.76718596]
[1773676643043,15.79599453,93.189,93.104,19.33]
[1773676643947,15.79599453,93.189,93.101,33.72]
[1773676646945,15.79599453,93.189,93.102,19.33]
[1773676647544,15.74765109,93.213,93.121,19.326]
[1773676647750,15.74765109,93.213,93.122,33.72]
[1773676648348,15.74765109,93.213,93.12,8.76718596]
[1773676648548,15.74765109,93.213,93.121,33.72]
[1773676648748,3.68421359,93.2,93.14,3.68421359]
[1773676648948,15.74943429,93.199,93.14,3.68421359]
[1773676649344,3.68421359,93.2,93.121,33.72]
[1773676649345,15.74943429,93.189,93.13,3.68421359]
[1773676649750,15.75231081,93.179,93.12,3.68421359]
[1773676650051,15.75231081,93.169,93.11,3.68421359]
[1773676650852,15.75231081,93.169,93.102,33.72]
[1773676651051,15.75197826,93.189,93.13,3.68421359]
[1773676652753,15.75197826,93.189,93.124,33.72]
[1773676654945,15.75197826,93.189,93.1,12.3290774]
[1773676655150,15.75197826,93.189,93.101,33.72]
[1773676655545,15.75197826,93.189,93.1,12.3290774]
[1773676655947,15.74848104,93.169,93.1,12.3290774]
[1773676664159,15.75359637,93.189,93.1,12.3290774]
[1773676664361,15.75359637,93.189,93.101,33.72]
[1773676665357,15.75359637,93.189,93.11,8.77555099]
[1773676665556,15.75359637,93.189,93.111,33.72]
[1773676667062,15.75359637,93.189,93.1,12.3290774]
[1773676668750,15.73135805,93.179,93.1,12.3290774]
[1773676674072,15.75961188,93.159,93.1,12.3290774]
[1773676675264,9.59566377,93.139,93.051,19.83727198]
[1773676675463,9.59566377,93.139,93.032,19.83727198]
[1773676675669,9.59566377,93.138,93.041,1.86925928]
[1773676675971,9.5656608,93.136,93.042,33.72]
[1773676676474,9.5656608,93.135,93.036,33.72]
[1773676676664,9.5656608,93.119,93.036,33.72]
[1773676677072,9.5656608,93.119,93.0,8.78033455]
[1773676677073,9.5656608,93.119,93.008,19.83727198]
[1773676677274,9.5656608,93.117,93.021,1.86963588]
[1773676677469,33.72,93.118,93.009,33.72]
[1773676677470,9.5656608,93.099,93.009,33.72]
[1773676679774,9.5656608,93.099,93.01,8.78033455]
[1773676680366,9.5656608,93.099,93.011,33.72]
[1773676681678,9.52689138,93.127,93.03,8.78033455]
[1773676682678,9.52689138,93.127,93.05,8.78033455]
[1773676683280,9.57929556,93.159,93.051,33.74]
[1773676684175,9.57929556,93.159,93.07,8.78033455]
[1773676684376,9.57929556,93.159,93.071,33.72]
[1773676688677,9.58460339,93.157,93.05,8.78033455]
[1773676690773,9.58460339,93.157,93.047,33.72]
[1773676691480,9.60371677,93.156,93.047,33.72]
[1773676691680,9.60371677,93.139,93.032,33.72]
[1773676692377,9.60371677,93.139,93.033,19.345]
[1773676692577,9.60371677,93.139,93.05,8.78033455]
[1773676698384,9.60371677,93.139,93.047,33.72]
[1773676698884,9.60808379,93.119,93.06,3.69061353]
[1773676699387,9.60808379,93.119,93.07,3.69061353]
[1773676699989,9.60808379,93.119,93.06,3.69061353]
[1773676702492,9.60808379,93.119,93.05,3.69061353]
[1773676703090,9.60992799,93.159,93.09,3.69061353]
[1773676703290,9.60992799,93.159,93.048,32.23]
[1773676703291,9.60992799,93.139,93.08,3.69061353]
[1773676706300,9.58879761,93.172,93.08,3.69061353]
[1773676706503,9.58879761,93.169,93.1,3.69061353]
[1773676706996,3.69061353,93.16,93.1,3.69061353]
[1773676707198,9.59982892,93.159,93.1,3.69061353]
[1773676707905,9.59982892,93.159,93.11,3.69061353]
[1773676709406,9.59982892,93.159,93.1,3.69061353]
[1773676710099,9.59982892,93.159,93.085,19.334]
[1773676710299,9.59694616,93.139,93.08,3.69061353]
[1773676710604,3.69061353,93.15,93.09,3.69061353]
[1773676710799,9.59282325,93.149,93.09,3.69061353]
[1773676711699,9.59282325,93.139,93.08,3.69061353]
[1773676712412,9.59282325,93.139,93.07,3.69061353]
[1773676712709,9.59641632,93.129,93.07,3.69061353]
[1773676713104,9.59641632,93.129,93.08,3.69061353]
[1773676713299,3.69061353,93.14,93.08,3.69061353]
[1773676713500,9.67839128,93.109,93.02,19.83727198]
[1773676713803,9.67839128,93.109,93.06,3.69061353]
[1773676714105,9.67789607,93.125,93.07,3.69061353]
[1773676714307,9.67789607,93.119,93.027,19.83727198]
[1773676714507,9.67789607,93.119,93.05,3.69061353]
[1773676715301,9.67789607,93.119,93.06,3.69061353]
[1773676715902,16.29260645,93.16,93.033,33.72]
[1773676715903,9.67653552,93.099,93.04,3.69061353]
[1773676716310,9.67653552,93.089,93.02,3.69061353]
[1773676716604,9.67653552,93.089,93.03,3.69061353]
[1773676716800,9.67653552,93.089,93.04,3.69061353]
[1773676718510,9.67653552,93.089,93.05,3.69061353]
[1773676718709,9.75329764,93.141,93.05,3.69061353]